[Event "1000GM Schev-G1 March 2024"]
[Site "Santa Clara"]
[Date "2024.03.10"]
[Round "2.5"]
[White "Yan, Nathan"]
[Black "Cu Hor, Winston Darwin"]
[Result "0-1"]
[ECO "B90"]
[WhiteElo "2185"]
[BlackElo "2343"]
[Annotator "TA"]
[PlyCount "102"]
[EventDate "2024.03.06"]
[EventType "schev"]
[EventCountry "USA"]
[SourceTitle "playchess.com"]
[Source "ChessBase"]
[SourceQuality "1"]
[TimeControl "5400+30"]

{[%evp 16,102,7,7,36,32,74,55,56,49,28,11,60,0,0,0,0,-15,-28,-20,2,0,0,0,10,20,65,8,35,-26,-26,-26,-22,-20,-26,-40,-43,-34,-39,-129,-122,-133,-125,-135,-95,-131,-129,-131,-129,-129,-129,-130,-133,-135,-134,-135,-131,-139,-142,-167,-153,-193,-83,-111,-114,-114,-108,-125,-130,-129,-138,-126,-106,-106,0,-106,-86,-91,-83,-84,-66,-66,-66,-72,-72,-340,-340,-290,-269]} 1. e4 {[%emt 0:03:24]} c5 {[%emt 0:00:27]} 2. Nf3 {[%emt 0:00:50]} d6 {[%emt 0:00:22]} 3. d4 {[%emt 0:00:32]} cxd4 {[%emt 0:00:12]} 4. Nxd4 {[%emt 0:00:05]} Nf6 {[%emt 0:00:05]} 5. Nc3 {[%emt 0:00:16]} a6 {[%emt 0:00:12]} 6. Be3 {[%emt 0:00:15]} e5 {[%emt 0:00:50]} 7. Nf3 {[%emt 0:00:35][%cal Bd4f3,Bf3d2,Bd2c4][%mdl 32]} Be7 {[%emt 0:02:02]} 8. Bc4 {[%emt 0:01:16]} O-O {[%emt 0:00:34]} 9. O-O {[%emt 0:00:13]} Nbd7 {[%emt 0:04:29]} 10. a4 {[%emt 0:02:41]} b6 {[%emt 0:00:16]} 11. Nd2 {[%emt 0:05:13]} Bb7 {[%emt 0:00:20] White is slightly better.} 12. Ba2 {[%emt 0:01:10]} Bc6 {[%emt 0:04:47]} 13. Nc4 {[%emt 0:06:51]} Qc7 {[%emt 0:04:22] [#]} (13... Nxe4 $11 14. Nxe4 Bxe4) 14. a5 $1 {[%emt 0:07:28]} b5 $1 $11 {[%emt 0:05:52]} 15. Nb6 {[%emt 0:01:06]} Nxb6 {[%emt 0:00:54]} 16. Bxb6 {[%emt 0:00:50]} Qb7 {[%emt 0:01:27]} 17. f3 {[%emt 0:00:56]} Rac8 {[%emt 0:07:14]} 18. Kh1 {[%emt 0:07:46]} b4 {[%emt 0:02:33]} 19. Nd5 {[%emt 0:04:57]} Nxd5 {[%emt 0:01:10]} 20. Bxd5 {[%emt 0:01:38]} Qd7 {[%emt 0:18:43]} 21. Rf2 {[%emt 0:07:38]} (21. Bb3 $14) 21... Bd8 {[%emt 0:01:44]} 22. Qd3 {[%emt 0:06:09]} ({White should try} 22. Bc4 $14) 22... Bxb6 {[%emt 0:06:49]} 23. axb6 {[%emt 0:01:09]} Qb7 {[%emt 0:00:10]} 24. Rxa6 {[%emt 0:08:27]} (24. Qxa6 Ra8 25. Qf1 Bxd5 (25... Qxb6 26. Rd1 $11) 26. exd5 Rxa1 (26... Qxb6 27. Rd2 $17) 27. Qxa1 Qxd5 (27... Qxb6 28. Re2 $17)) 24... Bxd5 {[%emt 0:00:58]} 25. exd5 {[%emt 0:00:14]} Ra8 {[%emt 0:01:51]} 26. Rxa8 {[%emt 0:01:45]} Rxa8 $15 {[%emt 0:00:29][%mdl 4096] Endgame. KQR-KQR} 27. Qb5 {[%emt 0:00:50] [#]} (27. g4 $15) 27... Qxd5 $3 $17 {[%emt 0:03:24][%mdl 512]} 28. Qf1 {[%emt 0:04:24]} (28. Qe2 Qc5) 28... Rb8 {[%emt 0:00:54] Black is more active.} 29. Qe1 {[%emt 0:09:15]} Qd4 {[%emt 0:01:05]} 30. c3 {[%emt 0:09:54]} bxc3 {[%emt 0:00:23]} 31. bxc3 {[%emt 0:00:05]} Qxb6 {[%emt 0:00:16]} 32. Rd2 {[%emt 0:00:20]} Qc5 {[%emt 0:03:19]} 33. Qd1 {[%emt 0:02:02]} Rb6 {[%emt 0:00:24]} (33... Qxc3 34. h3 $15) 34. h3 {[%emt 0:00:16]} g6 {[%emt 0:00:14]} (34... Qxc3 $2 35. Rc2 $18) 35. Kh2 {[%emt 0:00:52]} Kg7 {[%emt 0:01:02]} (35... Qxc3 $6 36. Rxd6 Qb4 37. Rd8+ Kg7 38. Qe2 $11) 36. Rd5 {[%emt 0:00:44]} Qc7 {[%emt 0:00:02]} (36... Qxc3 37. Rxd6 Rb2 38. Rd3 $17) 37. Qd2 {[%emt 0:01:51]} h5 {[%emt 0:00:21]} 38. f4 {[%emt 0:00:46]} Rc6 {[%emt 0:09:19]} (38... Qc4 $19 {and Black stays clearly on top.} 39. fxe5 dxe5) 39. fxe5 {[%emt 0:01:44]} dxe5 {[%emt 0:00:01]} 40. Rd7 {[%emt 0:00:06]} Qb6 {[%emt 0:02:51]} 41. Qd5 {[%emt 0:01:27]} Re6 {[%emt 0:00:08]} (41... Rxc3 42. Qxf7+ Kh6 43. h4 (43. Qg7+ Kg5 44. Qxe5+ Kh6 45. Qf4+ g5 46. Qf8+ Kg6 47. Rg7+ Kh6 48. Qh8#) (43. Qg7+ Kg5 44. Qxe5+ Kh6 45. Qf4+ g5 46. Qf8+ Kg6 47. Rg7+ Kh6 48. Qh8#)) 42. c4 {[%emt 0:01:04]} Qc6 {[%emt 0:00:16]} 43. Qd3 {[%emt 0:00:46]} Rf6 {[%emt 0:00:32]} 44. Rd5 {[%emt 0:00:55]} Re6 {[%emt 0:07:11]} (44... Rf4 $17 45. Qe3 Rf5 (45... Qxc4 46. Qxe5+ Rf6 47. Rd8 $15)) 45. c5 {[%emt 0:00:48]} (45. Rd7 $1 $11) 45... Qc7 {[%emt 0:00:31]} 46. Qc3 {[%emt 0:00:39]} Kh7 {[%emt 0:00:09]} 47. Kg1 {[%emt 0:00:39]} e4 {[%emt 0:00:20]} 48. Qd4 {[%emt 0:00:08]} Qf4 {[%emt 0:03:38]} 49. Rd8 {[%emt 0:00:19]} Qe5 {[%emt 0:01:39] Against Rh8+. ...e3 is the strong threat.} 50. c6 $2 {[%emt 0:00:55][%mdl 8192]} Qxd4+ $19 {[%emt 0:01:47]} 51. Rxd4 {[%emt 0:00:03]} e3 $1 {[%emt 0:00:55] Weighted Error Value: White=0.30/Black=0.13 (very precise) .  Loses game:     	White=1     	---        Mistake:       	White=5     	Black=3      Inaccurate:     	White=2     	Black=3      OK:         	White=14    	Black=12     Best:        	White=2     	Black=3      Strong:       	---       	Black=2      Brilliant:      	---       	Black=1} (51... Rxc6 52. Rxe4 g5 53. h4 $11) 0-1

[Event "1000GM Schev-G1 March 2024"]
[Site "Santa Clara"]
[Date "2024.03.10"]
[Round "3.2"]
[White "Arutla, Aditya"]
[Black "Griffith, Kyron"]
[Result "0-1"]
[ECO "B43"]
[WhiteElo "2239"]
[BlackElo "2352"]
[Annotator "TA"]
[PlyCount "75"]
[EventDate "2024.03.06"]
[EventType "schev"]
[EventCountry "USA"]
[SourceTitle "playchess.com"]
[Source "ChessBase"]
[SourceQuality "1"]
[TimeControl "5400+30"]

{[%evp 15,75,36,28,29,30,17,21,-27,8,-29,-22,-23,12,0,16,17,8,0,59,45,45,30,27,35,20,16,67,69,71,63,75,70,75,53,68,54,78,43,71,10,56,63,77,84,163,84,77,0,0,0,0,0,0,0,0,-48,490,-517,-52,-29977,477,479]} 1. e4 {[%emt 1:31:00]} c5 {[%emt 0:01:14]} 2. Nf3 {[%emt 0:00:00]} e6 {[%emt 0:00:07]} 3. d4 {[%emt 0:00:00]} cxd4 {[%emt 0:00:07]} 4. Nxd4 {[%emt 0:00:00]} a6 {[%emt 0:00:27]} 5. Nc3 {[%emt 0:00:00]} b5 {[%emt 0:00:17]} 6. Bd3 {[%emt 0:00:00]} Bb7 {[%emt 0:00:12]} 7. O-O {[%emt 0:00:00]} Nc6 {[%emt 0:00:25]} 8. Nxc6 {[%emt 0:00:00]} Bxc6 {[%emt 0:00:03]} 9. Re1 {[%emt 0:00:00]} Ne7 {[%emt 0:00:16]} 10. Qh5 {[%emt 0:00:00]} Ng6 {[%emt 0:01:46]} 11. e5 {[%emt 0:00:00]} (11. a3 {kam in Betracht.}) 11... Qb8 {[%emt 0:07:14]} 12. f4 {[%emt 0:00:00]} Qb6+ {[%emt 0:04:16]} 13. Kf1 $1 {[%emt 0:00:00]} Rc8 {[%emt 0:06:01]} 14. a4 {[%emt 0:00:00]} Bc5 {[%emt 0:10:47]} 15. axb5 {[%emt 0:00:00]} axb5 {[%emt 0:00:04]} 16. Qe2 {[%emt 0:00:00]} (16. g3 {hält die Spannung aufrecht.} d6 17. exd6 O-O 18. Qe2) 16... b4 {[%emt 0:05:03]} (16... O-O $11) 17. Ne4 {[%emt 0:00:00]} Bxe4 {[%emt 0:00:21]} 18. Bxe4 {[%emt 0:00:00]} O-O {[%emt 0:01:23]} 19. Ra6 {[%emt 0:00:00]} Qc7 {[%emt 0:02:12]} 20. g3 {[%emt 0:00:00]} f6 {[%emt 0:05:35]} (20... Ne7 $11) 21. exf6 $14 {[%emt 0:00:00]} Rxf6 {[%emt 0:00:15]} 22. Kg2 {[%emt 0:00:00]} Ne7 {[%emt 0:03:07]} 23. Qd3 {[%emt 0:00:00]} Nf5 {[%emt 0:06:30]} 24. b3 {[%emt 0:00:00]} Rf7 {[%emt 0:09:46]} 25. Bb2 {[%emt 0:00:00]} Bb6 {[%emt 0:03:26]} 26. Kh1 {[%emt 0:00:00]} h5 {[%emt 0:04:08]} 27. Qf3 {[%emt 0:03:52]} (27. Qe2 $16) 27... Qc5 {[%emt 0:00:55]} (27... h4 $1 $11) 28. Bd3 {[%emt 0:02:04]} (28. Qxh5 $2 Nxg3+ 29. hxg3 Qxh5+ $19) 28... Rb8 {[%emt 0:12:19]} 29. Be5 {[%emt 0:01:18] Das Läuferpaar ist gut.} (29. Qxh5 $2 Nxg3+ 30. hxg3 Qxh5+ $19) 29... Rc8 {[%emt 0:02:14]} (29... Rbf8 $16 {ist wohl besser.}) 30. Qb7 {[%emt 0:03:05]} ({Günstiger ist} 30. Qxh5 $18 {g4 ist eine echte Drohung.} Bc7 31. Qf3) 30... Bd8 $16 {[%emt 0:01:55]} 31. Bxf5 {[%emt 0:02:54]} (31. Qe4 $16) 31... exf5 $11 {[%emt 0:00:46]} 32. Bd4 {[%emt 0:00:55]} Qxc2 {[%emt 0:05:45]} 33. Re8+ {[%emt 0:00:17]} Rf8 $1 {[%emt 0:00:12]} (33... Kh7 $2 34. Qf3 $18) 34. Qd5+ {[%emt 0:01:34]} (34. Qxd7 Qd1+ 35. Kg2 Rc2+ 36. Bf2 Qxd7 37. Re3 Qb7+ 38. Kg1 Qxa6 (38... Rc1+ 39. Re1 Rxe1+ 40. Bxe1 Qxa6 41. h3 Bb6+ 42. Bf2 Bxf2+ 43. Kg2 Qe2 44. h4 Bd4+ 45. Kh3 Qf2 46. g4 hxg4#) 39. Re1 Bb6 (39... Rxf2 40. Kxf2 Qc6 41. Re3 Bb6 42. g4 Bxe3+ 43. Kxe3 Qc3+ 44. Kf2 Rd8 45. gxf5 Rd2+ 46. Kg1 Qc1#) 40. Kg2 Bxf2 (40... Rxf2+ 41. Kh3) 41. Rd1 Bg1+ 42. Kxg1 Qe2) 34... Kh7 {[%emt 0:00:02] Manche mögen's heiß} 35. Re1 {[%emt 0:00:28] Verhindert Qd1.} (35. Rxf8 Qd1+ 36. Kg2 Rc2+ 37. Bf2 Qxd5+ 38. Kh3 Rxf2) (35. Qf3 $11 Bf6 (35... Rxe8 36. Qxh5+ Kg8 37. Qxe8+ Kh7 38. Qg6+ Kh8 39. Qxg7#) 36. Rxf8 Rxf8 37. Bxf6 gxf6 (37... Rxf6 38. Qxh5+ Kg8 39. Rxf6 $11) 38. Qxh5+ Kg7 39. Rd6) 35... Qd2 $2 {[%emt 0:00:49][%mdl 8192] [#]} (35... Re8 $1 $15 36. Be5 (36. Rxe8 $2 Qd1+ $19) 36... Bc7) 36. Qe5 $4 {[%emt 0:00:25][%mdl 8192]} (36. Rh6+ $1 $18 Kxh6 (36... gxh6 37. Qxd7+) 37. Bxg7+ Kxg7 38. Qxd2) 36... Rf7 $2 {[%emt 0:00:49]} (36... Rf6 $19 {Und jetzt ...Rc2 wäre schön.} 37. Rf1 (37. Rxf6 $2 Bxf6 38. Qe2 Qxe2 $19) 37... Rc2 (37... Rxa6 38. Qxg7#) (37... Bc7 $2 38. Qe7 $19)) 37. Qd5 $2 {[%emt 0:01:08][%mdl 8192]} Rf8 $4 {[%emt 0:08:12][%mdl 8192] [#]} (37... Rc2 {vermeidet das Desaster.} 38. Rh6+ Kxh6 39. Bxg7+ Rxg7 40. Qxd2 Rxd2 41. Re8 Re7 (41... Rd1+ $2 42. Kg2 $19) 42. Rxe7 Bxe7 43. Kg1 h4 44. Kf1 Rxh2 (44... Rd1+ {wird mattgesetzt.} 45. Ke2 Rb1 46. Kf3 Rxb3+ 47. Ke2 Rb2+ 48. Ke3 b3 49. g4 Rxh2 50. gxf5 b2 51. f6 Bxf6 52. Kd3 b1=Q+ 53. Kc4 Qc1+ 54. Kd3 Qc2+ 55. Ke3 Rh3#) 45. gxh4 Bxh4 (45... Rh1+ {ist ein Selbstmatt.} 46. Ke2 Rh3 47. Ke1 Rxb3 48. Kf2 Rc3 49. h5 b3 50. Ke2 b2 51. Kd2 Bf6 52. Ke2 Rc2+ 53. Ke3 b1=Q 54. Kf3 Qb3#) 46. Kg1 Rb2 47. Kf1 Kh5 (47... Rxb3 {führt zum Matt.} 48. Ke2 Rc3 49. Kd1 Bf6 50. Ke2 b3 51. Kf2 b2 52. Kg2 Rc2+ 53. Kg3 b1=Q 54. Kh3 Qb3#) 48. Kg1 Kg4 (48... Rxb3 49. Kg2 Kg4 50. Kh2 Rb2+ 51. Kg1 b3 52. Kf1 Kh3 53. Kg1 Rb1#) 49. Kf1 Kh3 50. Kg1 Rb1#) 38. Rh6+ $3 {[%emt 0:00:30][%mdl 33280] Gewichteter Fehlerwert: Weiß=0.45/Schwarz=0.66.  Verlustzug:     	Weiß=1     	Schwarz=1     Gewinn verpasst:   	Weiß=1     	Schwarz=2     Fehler:       	Weiß=5     	Schwarz=4     Ungenau:       	Weiß=2     	Schwarz=3     OK:         	Weiß=11    	Schwarz=7     Bester:       	Weiß=1     	Schwarz=2     Stark:        	Weiß=1     	Schwarz=1     Brilliant:      	Weiß=1     	---       . Zeitüberschreitung!?} 0-1

[Event "1000GM Schev-G1 March 2024"]
[Site "Santa Clara"]
[Date "2024.03.10"]
[Round "3.3"]
[White "Arenas, David"]
[Black "Atwell, Rose"]
[Result "1/2-1/2"]
[ECO "A12"]
[WhiteElo "2368"]
[BlackElo "2285"]
[Annotator "TA"]
[PlyCount "133"]
[EventDate "2024.03.06"]
[EventType "schev"]
[EventCountry "USA"]
[SourceTitle "playchess.com"]
[Source "ChessBase"]
[SourceQuality "1"]
[TimeControl "5400+30"]

{[%evp 9,133,5,8,-17,0,-34,-2,-27,-21,-30,-8,-32,0,0,-2,-15,21,21,16,-14,0,0,10,-7,-13,-14,9,-3,0,-10,0,0,0,0,0,-2,0,-6,-4,-21,-16,-10,-16,0,-6,-10,0,0,0,-18,-35,-23,-24,-27,-33,-61,-56,-53,-30,-18,27,22,71,64,58,68,74,61,68,68,79,69,79,30,30,30,30,22,22,22,35,20,40,40,33,21,40,20,32,32,50,58,58,43,50,43,43,43,43,24,24,8,8,0,0,0,0,0,8,0,0,0,0,0,0,0,0,0,0,0,0,0,0,0,8,-8]} 1. c4 {[%emt 0:01:32]} c6 {[%emt 0:00:04]} 2. Nf3 {[%emt 0:00:31]} d5 {[%emt 0:00:06]} 3. e3 {[%emt 0:00:04]} Nf6 {[%emt 0:00:17]} 4. b3 {[%emt 0:00:19]} Bf5 {[%emt 0:03:24]} 5. Bb2 {[%emt 0:00:12]} e6 {[%emt 0:00:58]} 6. cxd5 {[%emt 0:00:37]} exd5 {[%emt 0:01:58]} 7. Be2 {[%emt 0:00:30]} Nbd7 {[%emt 0:02:03]} 8. a3 {[%emt 0:05:15]} Bd6 {[%emt 0:03:43]} 9. d3 {[%emt 0:00:15]} Qe7 {[%emt 0:02:16]} 10. Qc2 {[%emt 0:00:55]} c5 {[%emt 0:03:43]} 11. O-O {[%emt 0:00:39]} O-O {[%emt 0:02:16]} 12. Re1 {[%emt 0:05:51]} Rfe8 {[%emt 0:02:37]} 13. Nbd2 {[%emt 0:00:50]} h6 {[%emt 0:05:32]} 14. h3 {[%emt 0:02:45]} Bh7 {[%emt 0:02:26]} 15. Bf1 {[%emt 0:00:27][%cal Oe3e4]} Rac8 {[%emt 0:02:12]} 16. Qc3 {[%emt 0:10:05]} (16. e4 $5 Bc7 17. exd5 $11) 16... Bb8 {[%emt 0:06:29]} 17. Rad1 {[%emt 0:01:29]} Nf8 {[%emt 0:06:31]} 18. Qc1 {[%emt 0:00:45]} Ne6 {[%emt 0:01:14]} 19. Qa1 {[%emt 0:00:28]} b5 {[%emt 0:04:53]} 20. a4 {[%emt 0:10:40]} a6 {[%emt 0:03:31]} 21. e4 {[%emt 0:00:16]} Red8 {[%emt 0:05:14][%cal Be8d8,Bd8d5,Bd5d7,Bd7b7][%mdl 32]} (21... Rcd8 {with more complications.} 22. axb5 axb5 23. exd5 Rxd5 24. d4 cxd4 25. Nxd4 Qd7) 22. Bxf6 {[%emt 0:10:57]} Qxf6 {[%emt 0:06:14]} 23. Qxf6 {[%emt 0:02:40]} gxf6 {[%emt 0:00:03]} 24. axb5 {[%emt 0:00:11]} axb5 {[%emt 0:00:19]} 25. exd5 {[%emt 0:00:21]} Rxd5 {[%emt 0:01:31]} 26. Ne4 {[%emt 0:07:43]} Kg7 {[%emt 0:04:09]} 27. Nc3 {[%emt 0:01:07][%csl LRb5,LRd5]} Rd7 {[%emt 0:00:09]} 28. Nxb5 {[%emt 0:00:17]} Rcd8 {[%emt 0:02:18]} 29. Nc3 {[%emt 0:18:35]} Rb7 {[%emt 0:03:20]} 30. Ne4 {[%emt 0:02:52]} Rxb3 {[%emt 0:01:13]} 31. Nfd2 {[%emt 0:00:26][%cal Bf3d2,Bd2c4,Bc4e3][%mdl 32] Excellent horsemanship.} Rb4 {[%emt 0:01:58]} 32. Rb1 {[%emt 0:04:46][%cal Oe4c5]} Bf4 {[%emt 0:04:30] [#] And now ...f5 would win.} 33. Nc4 {[%emt 0:03:31][%cal Oe4c5]} Rxb1 {[%emt 0:04:34]} 34. Rxb1 {[%emt 0:00:02]} Bxe4 {[%emt 0:01:45]} 35. dxe4 {[%emt 0:00:01]} Rb8 {[%emt 0:00:12]} (35... Ng5 $11) 36. Rxb8 $16 {[%emt 0:01:09]} Bxb8 {[%emt 0:00:03][%mdl 4096] Endgame. KBN-KBN} 37. g3 {[%emt 0:00:30]} Nd4 {[%emt 0:02:12]} 38. Ne3 {[%emt 0:02:57]} Nf3+ {[%emt 0:03:31]} 39. Kg2 {[%emt 0:00:10]} Nd2 {[%emt 0:00:32]} 40. Bd3 {[%emt 0:03:11]} c4 {[%emt 0:01:48]} 41. Bxc4 {[%emt 0:01:27]} (41. Nxc4 $16 Nxc4 42. Bxc4) 41... Nxe4 $11 {[%emt 0:00:11]} 42. Nf5+ {[%emt 0:01:08]} Kg6 {[%emt 0:00:20]} 43. Ne7+ {[%emt 0:00:54]} Kg7 {[%emt 0:00:08]} 44. Bd3 {[%emt 0:01:43]} Nd6 {[%emt 0:00:12]} 45. g4 {[%emt 0:00:25]} Bc7 {[%emt 0:01:40]} 46. Nd5 {[%emt 0:00:08]} Bd8 {[%emt 0:00:13]} 47. Kg3 {[%emt 0:00:38]} Nb7 {[%emt 0:01:10]} 48. Kf3 {[%emt 0:00:33]} Nc5 {[%emt 0:00:41]} 49. Bf5 {[%emt 0:00:50]} Ba5 {[%emt 0:01:16]} 50. Nf4 {[%emt 0:00:36]} Bc3 {[%emt 0:00:08]} 51. Ke3 {[%emt 0:00:23]} Kf8 {[%emt 0:00:55]} 52. Nd5 {[%emt 0:00:59]} Bb2 {[%emt 0:00:11]} 53. Kf3 {[%emt 0:00:15]} Bd4 {[%emt 0:00:21]} 54. Bc8 {[%emt 0:00:44]} Ne6 {[%emt 0:00:53]} 55. Bxe6 {[%emt 0:00:26]} fxe6 {[%emt 0:00:03] KB-KN. The position is equal.} 56. Nf4 {[%emt 0:00:06]} Kf7 {[%emt 0:00:09]} 57. Nd3 {[%emt 0:00:02]} f5 {[%emt 0:01:08]} 58. Kg3 {[%emt 0:01:03]} fxg4 {[%emt 0:01:24]} 59. Kxg4 {[%emt 0:00:45]} Kf6 {[%emt 0:00:22]} 60. Kf4 {[%emt 0:00:40]} Bb6 {[%emt 0:00:26]} 61. f3 {[%emt 0:00:16]} Bc7+ {[%emt 0:01:12]} 62. Kg4 {[%emt 0:00:40]} Kg6 {[%emt 0:00:05]} 63. f4 {[%emt 0:00:31]} h5+ {[%emt 0:00:23]} 64. Kf3 {[%emt 0:00:11]} Kf5 {[%emt 0:00:09]} 65. Nc5 {[%emt 0:00:06]} Bxf4 {[%emt 0:00:10]} 66. Nxe6 {[%emt 0:00:06]} Kxe6 {[%emt 0:00:04]} 67. Ke4 {[%emt 0:02:34] Weighted Error Value: White=0.09 (flawless) /Black=0.09 (flawless) .  Mistake:       	White=1     	Black=1      Inaccurate:     	White=3     	Black=4      OK:         	White=23    	Black=19     Best:        	White=5     	Black=3} 1/2-1/2

[Event "1000GM Schev-G1 March 2024"]
[Site "Santa Clara"]
[Date "2024.03.10"]
[Round "3.4"]
[White "Cu Hor, Winston Darwin"]
[Black "Guo, Ethan"]
[Result "1-0"]
[ECO "A09"]
[WhiteElo "2343"]
[BlackElo "2227"]
[Annotator "TA"]
[PlyCount "135"]
[EventDate "2024.03.06"]
[EventType "schev"]
[EventCountry "USA"]
[SourceTitle "playchess.com"]
[Source "ChessBase"]
[SourceQuality "1"]
[TimeControl "5400+30"]

{[%evp 27,135,-38,-43,-45,-49,-43,-16,-37,-36,-67,-21,-19,-19,-60,-36,-22,-28,-22,-18,-13,-18,-16,-12,-22,-22,-37,0,-22,0,-37,-33,-45,-23,-32,0,-46,0,-39,0,-11,-9,-15,0,0,0,0,50,45,46,27,218,212,336,132,132,132,132,135,212,217,220,213,263,261,259,237,372,358,371,360,344,319,445,445,415,379,481,444,489,325,375,192,482,452,451,442,591,553,607,607,593,545,566,538,606,574,775,774,837,810,1206,1192,1022,990,29993,29994,29994,29995,29995,29996]} 1. Nf3 {[%emt 0:00:13]} d5 {[%emt 0:00:05]} 2. c4 {[%emt 0:00:04]} d4 {[%emt 0:00:07]} 3. e3 {[%emt 0:00:07]} Nc6 {[%emt 0:00:05]} 4. exd4 {[%emt 0:01:48]} Nxd4 {[%emt 0:00:09]} 5. Nxd4 {[%emt 0:00:04]} Qxd4 {[%emt 0:00:09]} 6. Nc3 {[%emt 0:00:24]} c6 {[%emt 0:00:09]} 7. Be2 {[%emt 0:00:48]} Nh6 {[%emt 0:02:07]} 8. O-O {[%emt 0:03:57]} g6 {[%emt 0:01:15]} 9. b3 {[%emt 0:02:59]} Bg7 {[%emt 0:01:18]} 10. Bb2 {[%emt 0:00:09]} Qd8 {[%emt 0:00:52]} 11. d3 {[%emt 0:10:59]} O-O {[%emt 0:02:55]} 12. Re1 {[%emt 0:00:19]} Nf5 {[%emt 0:01:26]} 13. Bf1 {[%emt 0:01:01]} c5 {[%emt 0:11:13]} 14. Qd2 {[%emt 0:02:06]} b6 {[%emt 0:01:31]} 15. Nd5 {[%emt 0:03:56]} Bxb2 {[%emt 0:06:29]} 16. Qxb2 {[%emt 0:00:49]} Bb7 {[%emt 0:00:10]} 17. Ne3 {[%emt 0:00:38]} Nd4 {[%emt 0:01:00]} 18. b4 {[%emt 0:00:45]} Rc8 {[%emt 0:02:44]} (18... cxb4 $15 {should be considered.} 19. Qxb4 e6) 19. a3 $11 {[%emt 0:06:50]} Qd7 {[%emt 0:04:01]} 20. bxc5 {[%emt 0:02:45]} bxc5 {[%emt 0:01:18]} (20... Rxc5 $5 21. Nd5 Ne6 $14) 21. Nc2 {[%emt 0:03:14]} Nxc2 {[%emt 0:00:24]} 22. Qxc2 {[%emt 0:00:03]} e6 {[%emt 0:00:27]} 23. Rab1 {[%emt 0:00:18]} Bc6 {[%emt 0:02:21]} 24. Qc3 {[%emt 0:00:02]} Rfd8 {[%emt 0:08:53]} 25. Qa5 {[%emt 0:02:40]} Qd6 {[%emt 0:05:07]} 26. Re3 {[%emt 0:01:40]} Rb8 {[%emt 0:01:18]} 27. Ree1 {[%emt 0:01:07]} h5 {[%emt 0:01:20]} 28. Be2 {[%emt 0:00:53]} Kg7 {[%emt 0:01:21]} 29. h3 {[%emt 0:01:26]} Kg8 {[%emt 0:05:07]} 30. Bf1 {[%emt 0:07:44]} Kg7 {[%emt 0:01:27]} 31. Rec1 {[%emt 0:04:05]} (31. Be2 $11 {feels stronger.}) 31... Kg8 {[%emt 0:03:00]} (31... Rbc8 $15) 32. Rd1 {[%emt 0:00:17]} Kg7 {[%emt 0:05:17]} 33. Rxb8 {[%emt 0:02:16]} Rxb8 {[%emt 0:00:10]} 34. Qxa7 {[%emt 0:00:24]} Ra8 {[%emt 0:03:18]} 35. Qb6 {[%emt 0:00:15]} Rb8 {[%emt 0:01:59]} 36. Qa5 {[%emt 0:00:38]} Qd4 {[%emt 0:00:54]} (36... Rb3 $11) 37. Qc7 $14 {[%emt 0:41:17]} Ba4 {[%emt 0:00:49]} 38. Re1 {[%emt 0:00:00]} (38. Qxb8 {simplifies} Bxd1 39. Qb1 Ba4 40. Qe1) 38... Rb3 $2 {[%emt 0:01:07]} (38... Rb2 $11 {and Black is okay.} 39. Qe5+ Kf8) 39. Rxe6 $18 {[%emt 0:00:00]} Rxa3 {[%emt 0:03:22]} (39... Rb2 $142) 40. Qe5+ $2 {[%emt 0:00:00]} (40. Re7 $18 {is more deadly.} Qf6 41. Qxc5) 40... Qxe5 $16 {[%emt 0:00:25]} 41. Rxe5 {[%emt 0:00:00]} Bc2 {[%emt 0:03:29]} 42. f4 {[%emt 0:00:00]} (42. Rxc5 Bxd3 43. Bxd3 Rxd3 $16) 42... f6 {[%emt 0:02:54] [#]} (42... h4 $16 {was worth a try.} 43. Rd5 (43. Rxc5 Bxd3 44. Bxd3 Rxd3 $11) 43... Ra8) 43. Rd5 $1 $18 {[%emt 0:00:00]} (43. Rxc5 Bxd3 44. Bxd3 Rxd3 $15) 43... h4 {[%emt 0:02:28]} 44. Kf2 {[%emt 0:00:00]} ({Not} 44. Rxc5 Bxd3 45. Bxd3 Rxd3 $11) 44... f5 {[%emt 0:03:57]} 45. Ke3 {[%emt 0:00:00]} ({Worse is} 45. Rxc5 Bxd3 46. Bxd3 Rxd3 $11) 45... Ra5 {[%emt 0:00:36]} 46. Rd7+ {[%emt 0:00:00]} Kh6 {[%emt 0:03:16]} (46... Kf6 {is a better defense.} 47. Rd6+ Kf7) 47. Be2 $18 {[%emt 0:00:00]} Ba4 {[%emt 0:07:36]} 48. Rc7 {[%emt 0:00:00]} Bc2 {[%emt 0:01:21]} 49. Kd2 {[%emt 0:00:00]} Bb3 {[%emt 0:01:25]} 50. Bf3 {[%emt 0:00:00]} Ba4 {[%emt 0:00:39]} 51. Rc8 {[%emt 0:00:00]} Kg7 {[%emt 0:00:18]} 52. Ke3 {[%emt 0:00:00]} Bc2 {[%emt 0:00:48]} 53. Rc7+ {[%emt 0:00:00]} Kh6 {[%emt 0:00:29]} 54. Rb7 {[%emt 0:00:00]} (54. d4 $142 cxd4+ 55. Kxd4) 54... Ba4 $2 {[%emt 0:00:32]} (54... Ra3) 55. Rb8 {[%emt 0:00:00]} Kg7 {[%emt 0:00:22]} 56. Bd5 {[%emt 0:00:00]} Bc2 {[%emt 0:00:23]} 57. Rb7+ {[%emt 0:00:00]} Kh6 {[%emt 0:00:11]} 58. Rb2 {[%emt 0:00:00]} Bd1 {[%emt 0:00:32]} 59. Rb5 {[%emt 0:00:00]} Ra3 {[%emt 0:00:35]} 60. Kd2 {[%emt 0:00:00]} Bh5 {[%emt 0:00:47]} 61. Rxc5 {[%emt 0:00:00]} Ra2+ {[%emt 0:00:07]} 62. Ke3 {[%emt 0:00:00]} Re2+ {[%emt 0:00:19]} 63. Kd4 {[%emt 0:00:00]} Rf2 {[%emt 0:00:14]} 64. Ke5 {[%emt 0:00:00]} Re2+ {[%emt 0:00:15]} 65. Kf6 {[%emt 0:00:00]} Rd2 {[%emt 0:00:44]} 66. Rc8 {[%emt 0:00:00]} Kh7 {[%emt 0:00:04]} 67. Rc7+ {[%emt 0:00:00]} Kh8 {[%emt 0:00:07]} 68. Kg5 {[%emt 0:00:00]} 1-0